fUSD/lending_fUSD_20250623
["ID","MTS","AMOUNT","RATE_DAILY","PERIOD"]
[367114635,1750662719158,-553.17,0.00029589,3]
[367114636,1750662719170,-256.19670689,0.00029589,3]
[367114637,1750662719182,-1449.74,0.00029589,3]
[367114638,1750662719195,-1184.6,0.00029589,3]
[367114639,1750662719208,-2077.31,0.00029589,3]
[367114640,1750662719219,-1017.63,0.00029589,3]
[367114641,1750662719231,-903.1,0.00029589,3]
[367114642,1750662719243,-1228.76,0.00029589,3]
[367114643,1750662719255,-840.82,0.00029589,3]
[367114644,1750662719267,-972.48,0.00029589,3]
[367114645,1750662719279,-490.0,0.00029589,3]
[367114646,1750662719291,-490.0,0.00029589,3]
[367114647,1750662719303,-698.82,0.00029589,3]
[367114648,1750662719315,-1683.09,0.00029589,3]
[367114649,1750662719327,-614.18,0.00029589,3]
[367114650,1750662719339,-1068.5,0.00029589,3]
[367114651,1750662719351,-492.43,0.00029589,3]
[367114652,1750662719363,-490.0,0.00029589,3]
[367114653,1750662719377,-899.45,0.00029589,3]
[367114654,1750662719389,-1018.31,0.00029589,3]
[367114655,1750662719401,-490.0,0.00029589,3]
[367114656,1750662719412,-1636.32,0.00029589,3]
[367114657,1750662719424,-1034.85,0.00029589,3]
[367114658,1750662719436,-490.0,0.00029589,3]
[367114659,1750662719447,-636.43,0.00029589,3]
[367114660,1750662719459,-514.73,0.00029589,3]
[367114661,1750662719983,-1597.54,0.00029589,3]
[367114662,1750662719998,-490.0,0.00029589,3]
[367114663,1750662720008,-878.08,0.00029589,3]
[367114664,1750662720017,-490.0,0.00029589,3]
[367114665,1750662720027,-933.44,0.00029589,3]
[367114666,1750662720037,-490.0,0.00029589,3]
[367114667,1750662720046,-980.14,0.00029589,3]
[367114668,1750662720056,-490.0,0.00029589,3]
[367114669,1750662720066,-1351.29,0.00029589,3]
[367114670,1750662720075,-490.0,0.00029589,3]
[367114671,1750662720085,-1021.72,0.00029589,3]
[367114672,1750662720094,-490.0,0.00029589,3]
[367114673,1750662720104,-490.0,0.00029589,3]
[367114674,1750662720114,-2515.92,0.00029589,3]
[367114675,1750662720124,-563.49,0.00029589,3]
[367114676,1750662720134,-718.42,0.00029589,3]
[367114677,1750662720144,-973.74,0.00029589,3]
[367114678,1750662720154,-490.0,0.00029589,3]
[367114679,1750662720164,-763.59,0.00029589,3]
[367114680,1750662720173,-500.84500671,0.00029589,3]
[367114681,1750662720183,-490.0,0.00029589,3]
[367114682,1750662720193,-1171.08,0.00029589,3]
[367114683,1750662720202,-490.0,0.00029589,3]
[367114684,1750662720212,-806.32,0.00029589,3]
[367114685,1750662720223,-1313.3,0.00029589,3]
[367114686,1750662720232,-490.0,0.00029589,3]
[367114687,1750662720243,-490.0,0.00029589,3]
[367114688,1750662720253,-1866.63,0.00029589,3]
[367114689,1750662720263,-783.39,0.00029589,3]
[367114690,1750662720274,-1408.5,0.00029589,3]
[367114691,1750662720285,-760.51,0.00029589,3]
[367114692,1750662720295,-640.07,0.00029589,3]
[367114693,1750662720305,-1615.12,0.00029589,3]
[367114694,1750662720315,-1113.91,0.00029589,3]
[367114695,1750662720325,-1204.57,0.00029589,3]
[367114696,1750662720335,-490.0,0.00029589,3]
[367114697,1750662720345,-852.31,0.00029589,3]
[367114698,1750662720355,-1617.57,0.00029589,3]
[367114699,1750662720365,-1344.16,0.00029589,3]
[367114700,1750662720376,-1189.28,0.00029589,3]
[367114701,1750662720385,-490.0,0.00029589,3]
[367114702,1750662720395,-924.24,0.00029589,3]
[367114703,1750662720405,-1327.65,0.00029589,3]
[367114704,1750662720415,-1017.87,0.00029589,3]
[367114705,1750662720425,-490.0,0.00029589,3]
[367114706,1750662720435,-816.97,0.00029589,3]
[367114707,1750662720444,-1505.21,0.00029589,3]
[367114708,1750662720454,-490.0,0.00029589,3]
[367114709,1750662720463,-490.0,0.00029589,3]
[367114710,1750662720473,-490.0,0.00029589,3]
[367114711,1750662720483,-995.43,0.00029589,3]
[367114712,1750662720492,-490.0,0.00029589,3]
[367114713,1750662720502,-3010.94,0.00029589,2]
[367114714,1750662720511,-1097.45,0.00029589,3]
[367114715,1750662720525,-753.53,0.00029589,3]
[367114716,1750662720534,-1037.06,0.00029589,3]
[367114717,1750662720544,-1995.53,0.00029589,3]
[367114718,1750662720554,-490.0,0.00029589,3]
[367114719,1750662720563,-660.48,0.00029589,3]
[367114720,1750662720573,-752.2,0.00029589,3]
[367114721,1750662720582,-1341.44,0.00029589,3]
[367114722,1750662720592,-490.0,0.00029589,3]
[367114723,1750662720602,-850.05,0.00029589,3]
[367114724,1750662720611,-490.0,0.00029589,3]
[367114725,1750662720623,-581.79,0.00029589,3]
[367114726,1750662720632,-507.29,0.00029589,3]
[367114727,1750662720641,-2153.23,0.00029589,3]
[367114728,1750662720651,-557.61,0.00029589,3]
[367114729,1750662720660,-273.16065993,0.00029589,3]
[367114730,1750662720670,-572.59,0.00029589,3]
[367114731,1750662720679,-490.0,0.00029589,3]
[367114732,1750662720689,-490.0,0.00029589,3]
[367114733,1750662720699,-2413.05,0.00029589,3]
[367114734,1750662720709,-490.0,0.00029589,3]
[367114735,1750662720719,-490.0,0.00029589,3]
[367114736,1750662720728,-566.43,0.00029589,3]
[367114737,1750662720737,-1348.78,0.00029589,3]
[367114738,1750662720747,-2316.4,0.00029589,3]
[367114739,1750662720756,-1609.27,0.00029589,3]
[367114740,1750662720766,-490.0,0.00029589,3]
[367114741,1750662720776,-569.99,0.00029589,3]
[367114742,1750662720785,-490.0,0.00029589,3]
[367114743,1750662720795,-490.0,0.00029589,3]
[367114744,1750662720805,-861.6,0.00029589,3]
[367114745,1750662720814,-490.0,0.00029589,3]
[367114746,1750662720823,-2663.87,0.00029589,3]
[367114747,1750662720833,-731.27,0.00029589,3]
[367114748,1750662720842,-637.81815607,0.00029589,3]
[367114749,1750662720851,-560.0,0.00029589,3]
[367114750,1750662720861,-1117.5,0.00029589,3]
[367114751,1750662720872,-490.0,0.00029589,3]
[367114752,1750662720882,-921.04,0.00029589,3]
[367114753,1750662720891,-783.55,0.00029589,3]
[367114754,1750662720900,-600.11,0.00029589,3]
[367114755,1750662720911,-1052.0,0.00029589,3]
[367114756,1750662720920,-490.0,0.00029589,3]
[367114757,1750662720929,-785.27,0.00029589,3]
[367114758,1750662720939,-1688.41,0.00029589,3]
[367114759,1750662720949,-595.61,0.00029589,3]
[367114760,1750662720959,-1726.17,0.00029589,3]
[367114761,1750662720968,-950.58,0.00029589,3]
[367114762,1750662720977,-490.0,0.00029589,3]
[367114763,1750662720987,-1953.41,0.00029589,3]
[367114764,1750662720996,-490.0,0.00029589,3]
[367114765,1750662721006,-523.44,0.00029589,3]
[367114766,1750662721015,-603.07,0.00029589,3]
[367114767,1750662721025,-1456.32,0.00029589,3]
[367114768,1750662721035,-1698.32,0.00029589,3]
[367114769,1750662721045,-501.63,0.00029589,3]
[367114770,1750662721054,-490.0,0.00029589,3]
[367114771,1750662721064,-490.0,0.00029589,3]
[367114772,1750662721074,-490.0,0.00029589,3]
[367114773,1750662721084,-1007.06,0.00029589,3]
[367114774,1750662721094,-1681.01,0.00029589,3]
[367114775,1750662721105,-1708.4,0.00029589,3]
[367114776,1750662721115,-490.0,0.00029589,3]
[367114777,1750662721126,-873.29,0.00029589,3]
[367114778,1750662721137,-1098.59,0.00029589,3]
[367114779,1750662721147,-1944.53,0.00029589,3]
[367114780,1750662721157,-490.0,0.00029589,3]
[367114781,1750662721167,-2433.81,0.00029589,3]
[367114782,1750662721177,-501.38,0.00029589,3]
[367114783,1750662721187,-750.42,0.00029589,3]
[367114784,1750662721198,-577.0,0.00029589,3]
[367114785,1750662721207,-662.45,0.00029589,3]
[367114786,1750662721217,-490.0,0.00029589,3]
[367114787,1750662721227,-1247.14,0.00029589,3]
[367114788,1750662721237,-1551.77,0.00029589,3]
[367114789,1750662721247,-1650.44,0.00029589,3]
[367114790,1750662721256,-703.59,0.00029589,3]
[367114791,1750662721266,-529.91,0.00029589,3]
[367114792,1750662721275,-490.0,0.00029589,3]
[367114793,1750662721286,-490.0,0.00029589,3]
[367114794,1750662721296,-490.0,0.00029589,3]
[367114795,1750662721306,-788.62,0.00029589,3]
[367114796,1750662721316,-912.47,0.00029589,3]
[367114797,1750662721326,-1251.29,0.00029589,3]
[367114798,1750662721335,-490.0,0.00029589,3]
[367114799,1750662721344,-655.66,0.00029589,3]
[367114800,1750662721354,-675.57,0.00029589,3]
[367114801,1750662721363,-300.0,0.00029589,3]
[367114802,1750662721374,-490.0,0.00029589,3]
[367114803,1750662721384,-1664.2,0.00029589,3]
[367114804,1750662721394,-1679.9,0.00029589,3]
[367114805,1750662721404,-490.0,0.00029589,3]
[367114806,1750662721413,-1433.27,0.00029589,3]
[367114807,1750662721423,-1066.4,0.00029589,3]
[367114808,1750662721432,-572.95,0.00029589,3]
[367114809,1750662721442,-490.0,0.00029589,3]
[367114810,1750662721452,-1605.51,0.00029589,3]
[367114811,1750662721463,-177.61458703,0.00029589,3]
[367114812,1750662721472,-1690.95,0.00029589,3]
[367114813,1750662721483,-490.0,0.00029589,3]
[367114814,1750662721492,-490.0,0.00029589,3]
[367114815,1750662721503,-1674.28,0.00029589,3]
[367114816,1750662721513,-490.0,0.00029589,3]
[367114817,1750662721527,-638.77,0.00029589,3]
[367114818,1750662721538,-1574.11,0.00029589,3]
[367114819,1750662721547,-378.81,0.00029589,3]
[367114820,1750662721558,-684.38,0.00029589,3]
[367114821,1750662721569,-1278.36,0.00029589,3]
[367114822,1750662721579,-905.6,0.00029589,3]
[367114823,1750662721589,-1682.39,0.00029589,3]
[367114824,1750662721601,-1126.22,0.00029589,3]
[367114825,1750662721612,-1410.38,0.00029589,3]
[367114826,1750662721623,-1883.69,0.00029589,3]
[367114827,1750662721633,-7415.21,0.00029589,3]
[367114828,1750662721644,-2332.56,0.00029589,3]
[367114829,1750662721654,-490.0,0.00029589,3]
[367114830,1750662721664,-490.0,0.00029589,3]
[367114831,1750662721673,-1248.93,0.00029589,3]
[367114832,1750662721684,-517.57764792,0.00029589,3]
[367114833,1750662721693,-1449.04,0.00029589,3]
[367114834,1750662721703,-849.69,0.00029589,3]
[367114835,1750662721714,-883.32,0.00029589,3]
[367114836,1750662721723,-587.88,0.00029589,3]
[367114837,1750662721735,-901.3,0.00029589,3]
[367114838,1750662721746,-1164.04,0.00029589,3]
[367114839,1750662721757,-490.0,0.00029589,3]
[367114840,1750662721767,-1753.14,0.00029589,3]
[367114841,1750662721776,-287.06741414,0.00029589,3]
[367114842,1750662721786,-4073.96,0.00029589,3]
[367114843,1750662721796,-10399.38,0.00029589,3]
[367114844,1750662721806,-580.67,0.00029589,3]
[367114845,1750662721816,-315.50514081,0.00029589,3]
[367114846,1750662721826,-1448.46,0.00029589,3]
[367114847,1750662721836,-836.73,0.00029589,3]
[367114848,1750662721845,-918.93,0.00029589,3]
[367114849,1750662721855,-526.35,0.00029589,3]
[367114850,1750662721865,-1355.08,0.00029589,3]
[367114851,1750662721875,-6824.52,0.00029589,3]
[367114852,1750662721885,-1900.51,0.00029589,3]
[367114853,1750662721895,-1016.76,0.00029589,3]
[367114854,1750662721905,-3401.6,0.00029589,3]
[367114855,1750662721915,-3966.47,0.00029589,3]
[367114856,1750662721925,-1741.72,0.00029589,3]
[367114857,1750662721940,-490.0,0.00029589,3]
[367114858,1750662721951,-490.0,0.00029589,3]
[367114859,1750662721961,-909.73,0.00029589,3]
[367114860,1750662721970,-608.52,0.00029589,3]
[367114861,1750662721980,-490.0,0.00029589,3]
[367114862,1750662721990,-934.07,0.00029589,3]
[367114863,1750662721999,-4949.36,0.00029589,3]
[367114864,1750662722009,-241.32336611,0.00029589,3]
[367114865,1750662722019,-2915.88,0.00029589,3]
[367114866,1750662722028,-490.0,0.00029589,3]
[367114867,1750662722037,-1585.93,0.00029589,3]
[367114868,1750662722047,-490.0,0.00029589,3]
[367114869,1750662722057,-490.0,0.00029589,3]
[367114870,1750662722067,-18062.45,0.00029589,3]
[367114871,1750662722077,-814.19,0.00029589,3]
[367114872,1750662722086,-3468.99,0.00029589,3]
[367114873,1750662722096,-1570.58,0.00029589,3]
[367114874,1750662722106,-1672.97,0.00029589,3]
[367114875,1750662722117,-789.6,0.00029589,3]
[367114876,1750662722128,-798.22,0.00029589,3]
[367114877,1750662722138,-1533.06,0.00029589,3]
[367114878,1750662722147,-1681.4,0.00029589,3]
[367114879,1750662722157,-490.0,0.00029589,3]
[367114880,1750662722167,-528.64,0.00029589,3]
[367114881,1750662722176,-1108.02,0.00029589,3]
[367114882,1750662722186,-1980.76,0.00029589,3]
[367114883,1750662722196,-2594.4,0.00029589,3]
[367114884,1750662722206,-490.0,0.00029589,3]
[367114885,1750662722216,-1623.55,0.00029589,3]
[367114886,1750662722226,-403.81305188,0.00029589,3]
[367114887,1750662722236,-490.0,0.00029589,3]
[367114888,1750662722245,-891.21,0.00029589,3]
[367114889,1750662722255,-1019.18,0.00029589,3]
[367114890,1750662722265,-1174.99,0.00029589,3]
[367114891,1750662722275,-3127.29,0.00029589,3]
[367114892,1750662722285,-1569.21,0.00029589,3]
[367114893,1750662722294,-490.0,0.00029589,3]
[367114894,1750662722304,-1940.59,0.00029589,3]
[367114895,1750662722314,-2329.34,0.00029589,3]
[367114896,1750662722409,-664.92,0.00029589,3]
[367114897,1750662722419,-1830.85,0.00029589,3]
[367114898,1750662722429,-403.92553064,0.00029589,3]
[367114899,1750662722441,-1700.21,0.00029589,3]
[367114900,1750662722460,-2769.81,0.00029589,3]
[367114901,1750662722469,-490.0,0.00029589,3]
[367114902,1750662722479,-6713.02,0.00029589,3]
[367114903,1750662722489,-777.56,0.00029589,3]
[367114904,1750662722499,-490.0,0.00029589,3]
[367114905,1750662722508,-2394.73,0.00029589,3]
[367114906,1750662722522,-826.09,0.00029589,3]
[367114907,1750662722532,-1294.78,0.00029589,3]
[367114908,1750662722542,-490.0,0.00029589,3]
[367114909,1750662722551,-1749.09,0.00029589,3]
[367114910,1750662722561,-760.04,0.00029589,3]
[367114911,1750662722571,-490.0,0.00029589,3]
[367114912,1750662722581,-555.71,0.00029589,3]
[367114913,1750662722590,-1626.24,0.00029589,3]
[367114914,1750662722600,-4056.64,0.00029589,3]
[367114915,1750662722609,-713.4,0.00029589,3]
[367114916,1750662722619,-490.0,0.00029589,3]
[367114917,1750662722630,-1498.64,0.00029589,3]
[367114918,1750662722640,-1457.21,0.00029589,3]
[367114919,1750662722650,-490.0,0.00029589,3]
[367114920,1750662722660,-737.54,0.00029589,3]
[367114921,1750662722670,-1307.83,0.00029589,3]
[367114922,1750662722680,-728.06,0.00029589,3]
[367114923,1750662722689,-490.0,0.00029589,3]
[367114924,1750662722698,-1832.35,0.00029589,3]
[367114925,1750662722708,-1380.67,0.00029589,3]
[367114926,1750662722718,-2228.14,0.00029589,3]
[367114927,1750662722727,-2372.02,0.00029589,3]
[367114928,1750662722737,-490.0,0.00029589,3]
[367114929,1750662722747,-3318.96,0.00029589,3]
[367114930,1750662722757,-709.01,0.00029589,3]
[367114931,1750662722767,-862.45,0.00029589,3]
[367114932,1750662722777,-788.8,0.00029589,3]
[367114933,1750662722787,-490.0,0.00029589,3]
[367114934,1750662722796,-1200.13,0.00029589,3]
[367114935,1750662722807,-1916.86,0.00029589,3]
[367114936,1750662722817,-678.77,0.00029589,3]
[367114937,1750662722826,-4654.08,0.00029589,3]
[367114938,1750662722835,-1366.52,0.00029589,3]
[367114939,1750662722845,-515.04,0.00029589,3]
[367114940,1750662722855,-788.62,0.00029589,3]
[367114941,1750662722864,-553.78,0.00029589,3]
[367114942,1750662722875,-1578.33,0.00029589,3]
[367114943,1750662722884,-1107.26,0.00029589,3]
[367114944,1750662722895,-498.97,0.00029589,3]
[367114945,1750662722904,-7394.17,0.00029589,3]
[367114946,1750662722914,-1624.99,0.00029589,3]
[367114947,1750662722924,-490.0,0.00029589,3]
[367114948,1750662722933,-530.79520872,0.00029589,3]
[367114949,1750662722944,-1036.64,0.00029589,3]
[367114950,1750662722954,-500.0,0.00029589,3]
[367114951,1750662722963,-490.0,0.00029589,3]
[367114952,1750662722973,-2834.49,0.00029589,3]
[367114953,1750662722983,-12536.04,0.00029589,3]
[367114954,1750662722993,-3543.99,0.00029589,3]
[367114955,1750662723003,-490.0,0.00029589,3]
[367114956,1750662723013,-1768.62,0.00029589,3]
[367114957,1750662723023,-497.45,0.00029589,3]
[367114958,1750662723033,-490.0,0.00029589,3]
[367114959,1750662723043,-490.0,0.00029589,3]
[367114960,1750662723053,-1947.91,0.00029589,3]
[367114961,1750662723063,-510.26,0.00029589,3]
[367114962,1750662723073,-1619.96,0.00029589,3]
[367114963,1750662723083,-510.41,0.00029589,3]
[367114964,1750662723093,-5190.35,0.00029589,3]
[367114965,1750662723103,-9852.89,0.00029589,3]
[367114966,1750662723113,-490.0,0.00029589,3]
[367114967,1750662723123,-1552.44,0.00029589,3]
[367114968,1750662723134,-814.87,0.00029589,3]
[367114969,1750662723144,-2783.14,0.00029589,3]
[367114970,1750662723155,-1717.08,0.00029589,3]
[367114971,1750662723166,-490.0,0.00029589,3]
[367114972,1750662723177,-2330.84,0.00029589,3]
[367114973,1750662723188,-1630.26,0.00029589,3]
[367114974,1750662723198,-752.02,0.00029589,3]
[367114975,1750662723208,-490.0,0.00029589,3]
[367114976,1750662723219,-1618.67,0.00029589,3]
[367114977,1750662723229,-490.0,0.00029589,3]
[367114978,1750662723239,-1151.97,0.00029589,3]
[367114979,1750662723249,-1776.65,0.00029589,3]
[367114980,1750662723260,-915.84,0.00029589,3]
[367114981,1750662723270,-670.37,0.00029589,3]
[367114982,1750662723282,-3986.65,0.00029589,3]
[367114983,1750662723292,-1960.82,0.00029589,3]
[367114984,1750662723303,-1591.01,0.00029589,3]
[367114985,1750662723313,-6065.53,0.00029589,3]
[367114986,1750662723324,-1605.38,0.00029589,3]
[367114987,1750662723334,-1642.63,0.00029589,3]
[367114988,1750662723344,-798.12,0.00029589,3]
[367114989,1750662723355,-1292.66,0.00029589,3]
[367114990,1750662723365,-490.0,0.00029589,3]
[367114991,1750662723379,-4219.23,0.00029589,3]
[367114992,1750662723391,-2292.5,0.00029589,3]
[367114993,1750662723402,-2903.63,0.00029589,3]
[367114994,1750662723412,-1562.1,0.00029589,3]
[367114995,1750662723424,-765.43,0.00029589,3]
[367114996,1750662723435,-1872.32,0.00029589,3]
[367114997,1750662723447,-3240.53,0.00029589,3]
[367114998,1750662723458,-492.32,0.00029589,3]
[367114999,1750662723469,-1684.89,0.00029589,3]
[367115000,1750662723480,-1499.13,0.00029589,3]
[367115001,1750662723491,-2262.37,0.00029589,3]
[367115002,1750662723501,-1822.31,0.00029589,3]
[367115003,1750662723511,-490.0,0.00029589,3]
[367115004,1750662723524,-745.32,0.00029589,3]
[367115005,1750662723535,-490.0,0.00029589,3]
[367115006,1750662723545,-1565.33,0.00029589,3]
[367115007,1750662723555,-3248.59,0.00029589,3]
[367115008,1750662723567,-1599.78,0.00029589,3]
[367115009,1750662723577,-1190.83,0.00029589,3]
[367115010,1750662723587,-795.18,0.00029589,3]
[367115011,1750662723598,-638.67,0.00029589,3]
[367115012,1750662723609,-8785.1,0.00029589,3]
[367115013,1750662723619,-849.6,0.00029589,3]
[367115014,1750662723633,-1583.66,0.00029589,3]
[367115015,1750662723643,-1787.94,0.00029589,3]
[367115016,1750662723653,-423.08329147,0.00029589,3]
[367115017,1750662723663,-1444.68,0.00029589,3]
[367115018,1750662723673,-1335.88,0.00029589,3]
[367115019,1750662723682,-948.02,0.00029589,3]
[367115020,1750662723692,-490.0,0.00029589,3]
[367115021,1750662723702,-507.9,0.00029589,3]
[367115022,1750662723712,-3963.91,0.00029589,3]
[367115023,1750662723722,-1578.99,0.00029589,3]
[367115024,1750662723732,-1445.82,0.00029589,3]
[367115025,1750662723742,-1285.59,0.00029589,3]
[367115026,1750662723752,-490.0,0.00029589,3]
[367115027,1750662723762,-490.0,0.00029589,3]
[367115028,1750662723773,-490.0,0.00029589,3]
[367115029,1750662723783,-490.0,0.00029589,3]
[367115030,1750662723794,-728.45,0.00029589,3]
[367115031,1750662723804,-490.0,0.00029589,3]
[367115032,1750662723814,-806.96,0.00029589,3]
[367115033,1750662723824,-1797.81,0.00029589,3]
[367115034,1750662723834,-1831.64,0.00029589,3]
[367115035,1750662723844,-1432.05,0.00029589,3]
[367115036,1750662723854,-919.07,0.00029589,3]
[367115037,1750662723864,-14900.62,0.00029589,3]
[367115038,1750662723875,-1833.67,0.00029589,3]
[367115039,1750662723886,-2078.39,0.00029589,3]
[367115040,1750662723896,-510.45,0.00029589,3]
[367115041,1750662723906,-490.0,0.00029589,3]
[367115042,1750662723915,-490.0,0.00029589,3]
[367115043,1750662723925,-4833.93,0.00029589,3]
[367115044,1750662723935,-490.0,0.00029589,3]
[367115045,1750662723947,-1601.31,0.00029589,3]
[367115046,1750662723956,-759.06,0.00029589,3]
[367115047,1750662723967,-873.41,0.00029589,3]
[367115048,1750662723979,-4669.42,0.00029589,3]
[367115049,1750662723988,-791.68,0.00029589,3]
[367115050,1750662723998,-1693.53,0.00029589,3]
[367115051,1750662724008,-990.18,0.00029589,3]
[367115052,1750662724018,-1034.99,0.00029589,3]
[367115053,1750662724027,-231.16591994,0.00029589,3]
[367115054,1750662724037,-1620.6,0.00029589,3]
[367115055,1750662724047,-1653.45,0.00029589,3]
[367115056,1750662724056,-1389.7,0.00029589,3]
[367115057,1750662724066,-3451.15,0.00029589,3]
[367115058,1750662724076,-490.0,0.00029589,3]
[367115059,1750662724086,-490.0,0.00029589,3]
[367115060,1750662724096,-993.54,0.00029589,3]
[367115061,1750662724106,-2416.24,0.00029589,3]
[367115062,1750662724116,-426.99227332,0.00029589,3]
[367115063,1750662724128,-566.41,0.00029589,3]
[367115064,1750662724139,-11090.94,0.00029589,3]
[367115065,1750662724149,-1221.42,0.00029589,3]
[367115066,1750662724159,-1799.28,0.00029589,3]
[367115067,1750662724169,-2070.18,0.00029589,3]
[367115068,1750662724180,-1701.67,0.00029589,3]
[367115069,1750662724189,-1378.47,0.00029589,3]
[367115070,1750662724199,-1087.15,0.00029589,3]
[367115071,1750662724209,-1736.17,0.00029589,3]
[367115072,1750662724219,-1351.61,0.00029589,3]
[367115073,1750662724228,-490.0,0.00029589,3]
[367115074,1750662724239,-1816.97,0.00029589,3]
[367115075,1750662724248,-490.0,0.00029589,3]
[367115076,1750662724259,-709.09,0.00029589,3]
[367115077,1750662724269,-1834.95,0.00029589,3]
[367115078,1750662724279,-1672.0,0.00029589,3]
[367115079,1750662724288,-1571.12,0.00029589,3]
[367115080,1750662724299,-490.0,0.00029589,3]
[367115081,1750662724309,-490.0,0.00029589,3]
[367115082,1750662724319,-4884.01,0.00029589,3]
[367115083,1750662724329,-1729.07,0.00029589,3]
[367115084,1750662724339,-8073.75,0.00029589,3]
[367115085,1750662724350,-1652.26,0.00029589,3]
[367115086,1750662724360,-718.8,0.00029589,3]
[367115087,1750662724372,-490.0,0.00029589,3]
[367115088,1750662724382,-867.32,0.00029589,3]
[367115089,1750662724394,-30050.84,0.00029589,3]
[367115090,1750662724404,-490.0,0.00029589,3]
[367115091,1750662724415,-1482.76,0.00029589,3]
[367115092,1750662724426,-1513.2,0.00029589,3]
[367115093,1750662724436,-1869.9,0.00029589,3]
[367115094,1750662724446,-490.0,0.00029589,3]
[367115095,1750662724457,-465.35890563,0.00029589,3]
[367115096,1750662724466,-825.47,0.00029589,3]
[367115097,1750662724476,-1291.21,0.00029589,3]
[367115098,1750662724485,-490.0,0.00029589,3]
[367115099,1750662724495,-529.57,0.00029589,3]
[367115100,1750662724505,-1000.93,0.00029589,3]
[367115101,1750662724517,-1013.98,0.00029589,2]
[367115102,1750662724527,-1301.95,0.00029589,3]
[367115103,1750662724536,-749.71,0.00029589,3]
[367115104,1750662724546,-2626.45,0.00029589,3]
[367115105,1750662724557,-914.97,0.00029589,3]
[367115106,1750662724567,-5331.91,0.00029589,3]
[367115107,1750662724577,-6188.74,0.00029589,3]
[367115108,1750662724595,-733.17,0.00029589,3]
[367115109,1750662724606,-2204.74,0.00029589,3]
[367115110,1750662724615,-742.07,0.00029589,3]
[367115111,1750662724626,-1553.91,0.00029589,3]
[367115112,1750662724636,-866.05,0.00029589,3]
[367115113,1750662724646,-1201.89,0.00029589,3]
[367115114,1750662724656,-5637.09,0.00029589,3]
[367115115,1750662724666,-716.87,0.00029589,3]
[367115116,1750662724675,-490.0,0.00029589,3]
[367115117,1750662724686,-1651.87,0.00029589,3]
[367115118,1750662724695,-2465.19,0.00029589,3]
[367115119,1750662724705,-1607.85,0.00029589,3]
[367115120,1750662724715,-572.05,0.00029589,3]
[367115121,1750662724725,-1906.99,0.00029589,3]
[367115122,1750662724735,-1536.26,0.00029589,3]
[367115123,1750662724746,-1920.56,0.00029589,3]
[367115124,1750662724755,-2965.58,0.00029589,3]
[367115125,1750662724765,-1131.73,0.00029589,3]
[367115126,1750662724774,-764.72,0.00029589,3]
[367115127,1750662724785,-594.04,0.00029589,3]
[367115128,1750662724795,-490.0,0.00029589,3]
[367115129,1750662724804,-490.0,0.00029589,3]
[367115130,1750662724814,-1385.46,0.00029589,3]
[367115131,1750662724824,-1205.8,0.00029589,3]
[367115132,1750662724833,-9152.84069802,0.00029599,2]
[367115133,1750662724843,-201.3339867,0.00029644,30]
[367115134,1750662724852,-1511.09276146,0.0002965,2]